fUST/lending_fUST_20260113
["ID","MTS","AMOUNT","RATE_DAILY","PERIOD"]
[401466255,1768245040007,-500.0,0.00013699,2]
[401466256,1768245040016,-500.93038909,0.00013699,2]
[401466257,1768245040025,-500.0,0.00013699,2]
[401466258,1768245040034,-500.0,0.00013699,2]
[401466259,1768245040044,-500.0,0.00013699,2]
[401466260,1768245040053,-500.0,0.00013699,2]
[401466261,1768245040062,-500.0,0.00013699,2]
[401466262,1768245040071,-500.0,0.00013699,2]
[401466263,1768245040080,-500.0,0.00013699,2]
[401466264,1768245040090,-500.0,0.00013699,2]
[401466265,1768245040099,-500.0,0.00013699,2]
[401466266,1768245040109,-500.0,0.00013699,2]
[401466267,1768245040118,-296.07308979,0.00013699,2]
[401466268,1768245040127,-159.64533136,0.00013699,2]
[401466269,1768245040137,-500.0,0.00013699,2]
[401466270,1768245040146,-500.0,0.00013699,2]
[401466271,1768245040155,-500.0,0.00013699,2]
[401466272,1768245040164,-500.0,0.00013699,2]
[401466273,1768245040174,-500.0,0.00013699,2]
[401466274,1768245040183,-500.0,0.00013699,2]
[401466275,1768245040192,-500.0,0.00013699,2]
[401466276,1768245040201,-500.0,0.00013699,2]
[401466277,1768245040211,-500.0,0.00013699,2]
[401466278,1768245040219,-500.0,0.00013699,2]
[401466279,1768245040228,-313.20652716,0.00013699,2]
[401466280,1768245040238,-500.0,0.00013699,2]
[401466281,1768245040247,-500.0,0.00013699,2]
[401466282,1768245040256,-501.55614282,0.00013699,2]
[401466283,1768245040265,-500.0,0.00013699,2]
[401466284,1768245040274,-500.28128039,0.00013699,2]
[401466285,1768245040283,-500.0,0.00013699,2]
[401466286,1768245040292,-500.0,0.00013699,2]
[401466287,1768245040301,-500.0,0.00013699,2]
[401466288,1768245040313,-500.0,0.00013699,2]
[401466289,1768245040323,-500.0,0.00013699,2]
[401466290,1768245040332,-500.0,0.00013699,2]
[401466291,1768245040342,-461.16799506,0.00013699,2]
[401466292,1768245040351,-500.0,0.00013699,2]
[401466293,1768245040360,-500.0,0.00013699,2]
[401466294,1768245040369,-500.0,0.00013699,2]
[401466295,1768245040378,-500.0,0.00013699,2]
[401466296,1768245040389,-500.0,0.00013699,2]
[401466298,1768245040398,-500.0,0.00013699,2]
[401466300,1768245040408,-500.0,0.00013699,2]
[401466302,1768245040417,-500.0,0.00013699,2]
[401466303,1768245040426,-500.0,0.00013699,2]
[401466304,1768245040435,-65612.9496418,0.00013699,2]
[401466305,1768245040445,-1207.9640205,0.00013699,2]
[401466306,1768245040454,-213.347949,0.00013699,2]
[401466307,1768245040463,-213.347949,0.00013699,2]
[401466308,1768245040472,-213.347949,0.00013699,2]
[401466309,1768245040481,-213.347949,0.00013699,2]
[401466310,1768245040490,-199.67131058,0.00013699,2]
[401466311,1768245040500,-500.0,0.00013821,2]
[401466312,1768245040508,-1000.0,0.00013821,2]
[401466313,1768245040518,-1000.0,0.00013821,2]
[401466314,1768245040527,-1000.0,0.00013821,2]
[401466315,1768245040537,-500.0,0.00013821,2]
[401466316,1768245040547,-1000.0,0.00013821,2]
[401466317,1768245040556,-1000.0,0.00013821,2]
[401466318,1768245040565,-1000.0,0.00013821,2]
[401466319,1768245040574,-1000.0,0.00013821,2]
[401466320,1768245040584,-1000.0,0.00013821,2]
[401466321,1768245040593,-500.0,0.00013821,2]
[401466322,1768245040604,-1000.0,0.00013821,2]
[401466323,1768245040613,-1000.0,0.00013821,2]
[401466324,1768245040622,-1000.0,0.00013821,2]
[401466325,1768245040632,-1000.0,0.00013821,2]
[401466326,1768245040642,-894.52826302,0.00013821,2]
[401466327,1768245040651,-1024.41105261,0.00013821,2]
[401466328,1768245040661,-587.83194945,0.00013821,2]
[401466329,1768245040671,-1000.0,0.00013821,2]
[401466330,1768245040680,-1000.0,0.00013821,2]
[401466331,1768245040690,-1000.0,0.00013821,2]
[401466332,1768245040699,-1000.0,0.00013821,2]
[401466333,1768245040709,-1000.0,0.00013821,2]
[401466334,1768245040719,-1000.0,0.00013821,2]
[401466335,1768245040728,-1000.0,0.00013821,2]
[401466336,1768245040738,-1000.0,0.00013821,2]
[401466337,1768245040748,-1000.0,0.00013821,2]
[401466338,1768245040757,-1000.0,0.00013821,2]
[401466339,1768245040767,-1000.0,0.00013821,2]
[401466340,1768245040776,-1000.0,0.00013821,2]
[401466341,1768245040786,-1000.0,0.00013821,2]
[401466342,1768245040795,-1000.0,0.00013821,2]
[401466343,1768245040805,-1000.0,0.00013821,2]
[401466344,1768245040815,-1000.0,0.00013821,2]
[401466345,1768245040825,-500.0,0.00013821,2]
[401466346,1768245040834,-500.0,0.00013821,2]
[401466347,1768245040844,-1000.0,0.00013821,2]
[401466348,1768245040854,-1000.0,0.00013821,2]
[401466349,1768245040863,-1000.0,0.00013821,2]
[401466350,1768245040872,-1000.0,0.00013821,2]
[401466351,1768245040882,-1000.0,0.00013821,2]
[401466352,1768245040891,-1000.0,0.00013821,2]
[401466353,1768245040901,-1000.0,0.00013821,2]
[401466354,1768245040910,-1000.0,0.00013821,2]
[401466355,1768245040920,-1000.0,0.00013821,2]
[401466356,1768245040930,-1000.0,0.00013821,2]
[401466357,1768245040940,-1000.0,0.00013821,2]
[401466358,1768245040949,-200.0,0.00013821,2]
[401466359,1768245040959,-600.0,0.00013971,2]
[401466360,1768245040968,-294.20360383,0.00013973,2]
[401466361,1768245040978,-500.0,0.00014219,2]
[401466362,1768245040987,-500.0,0.00014219,2]
[401466363,1768245040998,-500.0,0.00014219,2]
[401466364,1768245041008,-500.0,0.00014219,2]
[401466365,1768245041018,-500.0,0.00014219,2]
[401466366,1768245041028,-500.0,0.00014219,2]
[401466367,1768245041038,-500.0,0.00014219,2]
[401466368,1768245041047,-500.0,0.00014219,2]
[401466369,1768245041057,-500.0,0.00014219,2]
[401466370,1768245041066,-600.0,0.00014221,2]
[401466371,1768245041075,-500.0,0.00014247,2]
[401466372,1768245041084,-1000.0,0.00014247,2]
[401466373,1768245041094,-875.76793412,0.00014247,2]
[401466374,1768245041104,-500.0,0.00014247,2]
[401466375,1768245041113,-500.0,0.00014247,2]
[401466376,1768245041122,-1000.0,0.00014247,2]
[401466377,1768245041132,-1000.0,0.00014247,2]
[401466378,1768245041141,-500.512985,0.00014247,2]
[401466379,1768245041151,-658.4999436,0.00014247,2]
[401466380,1768245041160,-500.0,0.00014247,2]
[401466381,1768245041260,-502.38932755,0.00014247,2]
[401466382,1768245041271,-1000.0,0.00014247,2]
[401466383,1768245041280,-1014.57441802,0.00014247,2]
[401466384,1768245041290,-1000.0,0.00014247,2]
[401466385,1768245041300,-500.0,0.00014247,2]
[401466386,1768245041312,-517.77857831,0.00014247,2]
[401466387,1768245041322,-1000.0,0.00014247,2]
[401466388,1768245041331,-1000.0,0.00014247,2]
[401466389,1768245041340,-1000.0,0.00014247,2]
[401466390,1768245041350,-1000.0,0.00014247,2]
[401466391,1768245041360,-1000.0,0.00014247,2]
[401466392,1768245041369,-581.34216933,0.00014247,2]
[401466393,1768245041379,-1000.0,0.00014247,2]
[401466394,1768245041390,-1000.0,0.00014247,2]
[401466395,1768245041401,-283.84380117,0.00014247,2]
[401466396,1768245041411,-529.61129365,0.00014247,2]
[401466397,1768245041420,-1000.0,0.00014247,2]
[401466398,1768245041433,-346.05518507,0.00014247,2]
[401466399,1768245041446,-1000.0,0.00014247,2]
[401466400,1768245041457,-646.68328603,0.00014247,2]
[401466401,1768245041468,-1000.0,0.00014247,2]
[401466402,1768245041483,-1000.0,0.00014247,2]
[401466403,1768245041494,-1000.0,0.00014247,2]
[401466404,1768245041506,-1000.0,0.00014247,2]
[401466405,1768245041516,-1000.0,0.00014247,2]
[401466406,1768245041529,-1006.00253074,0.00014247,2]
[401466407,1768245041541,-1000.0,0.00014247,2]
[401466408,1768245041552,-1000.0,0.00014247,2]
[401466409,1768245041562,-1000.0,0.00014247,2]
[401466410,1768245041574,-1000.0,0.00014247,2]
[401466411,1768245041586,-1000.0,0.00014247,2]
[401466412,1768245041596,-1000.0,0.00014247,2]
[401466413,1768245041616,-1000.0,0.00014247,2]
[401466414,1768245041627,-1000.0,0.00014247,2]
[401466415,1768245041638,-500.0,0.00014247,2]
[401466416,1768245041648,-1000.0,0.00014247,2]
[401466417,1768245041661,-499.83703447,0.00014247,2]
[401466418,1768245041671,-1000.0,0.00014247,2]
[401466419,1768245041682,-1000.0,0.00014247,2]
[401466420,1768245041692,-1000.0,0.00014247,2]
[401466421,1768245041702,-1002.56553603,0.00014247,2]
[401466422,1768245041712,-1000.0,0.00014247,2]
[401466423,1768245041722,-1000.0,0.00014247,2]
[401466424,1768245041732,-1000.0,0.00014247,2]
[401466425,1768245041743,-1000.0,0.00014247,2]
[401466426,1768245041754,-1138.41119879,0.00014247,2]
[401466427,1768245041763,-213.347949,0.00014247,2]
[401466428,1768245041773,-213.347949,0.00014247,2]
[401466429,1768245041783,-213.347949,0.00014247,2]
[401466430,1768245041794,-213.347949,0.00014247,2]
[401466431,1768245041805,-234.54262735,0.00014368,2]
[401466432,1768245041815,-1500.0,0.00014368,2]
[401466433,1768245041825,-500.0,0.00014368,2]
[401466434,1768245041835,-1498.67530402,0.00014368,2]
[401466435,1768245041846,-500.0,0.00014368,2]
[401466436,1768245041861,-1500.0,0.00014368,2]
[401466437,1768245041872,-1500.0,0.00014368,2]
[401466438,1768245041882,-1500.0,0.00014368,2]
[401466439,1768245041893,-1500.0,0.00014368,2]
[401466440,1768245041902,-1500.0,0.00014368,2]
[401466441,1768245041912,-1500.0,0.00014368,2]
[401466442,1768245041921,-1500.0,0.00014368,2]
[401466443,1768245041931,-1500.0,0.00014368,2]
[401466444,1768245041940,-1500.0,0.00014368,2]
[401466445,1768245041950,-1500.0,0.00014368,2]
[401466446,1768245041960,-958.38483251,0.00014368,2]
[401466447,1768245041969,-1423.32811707,0.00014368,2]
[401466448,1768245041978,-1113.91769968,0.00014368,2]
[401466449,1768245041987,-1500.0,0.00014368,2]
[401466450,1768245041997,-1500.0,0.00014368,2]
[401466451,1768245042007,-1500.0,0.00014368,2]
[401466452,1768245042016,-1500.0,0.00014368,2]
[401466453,1768245042025,-1500.0,0.00014368,2]
[401466454,1768245042035,-1500.0,0.00014368,2]
[401466455,1768245042044,-1500.0,0.00014368,2]
[401466456,1768245042054,-1500.0,0.00014368,2]
[401466457,1768245042063,-617.09313217,0.00014368,2]
[401466458,1768245042073,-1500.0,0.00014368,2]
[401466459,1768245042082,-1500.0,0.00014368,2]
[401466460,1768245042092,-332.40668052,0.00014368,2]
[401466461,1768245042104,-1500.0,0.00014368,2]
[401466462,1768245042114,-1500.0,0.00014368,2]
[401466463,1768245042123,-1500.0,0.00014368,2]
[401466464,1768245042133,-1500.0,0.00014368,2]
[401466465,1768245042143,-1500.0,0.00014368,2]
[401466466,1768245042152,-1500.0,0.00014368,2]
[401466467,1768245042162,-680.33880903,0.00014368,2]
[401466468,1768245042172,-500.0,0.00014368,2]
[401466469,1768245042182,-1500.0,0.00014368,2]
[401466470,1768245042191,-5000.0,0.0001451,2]
[401466471,1768245042201,-823.0,0.00014613,2]
[401466472,1768245042211,-253.11221216,0.00014685,2]
[401466473,1768245042221,-900.0,0.00014768,2]
[401466474,1768245042232,-500.0,0.00014795,2]
[401466475,1768245042241,-1500.0,0.00014795,2]
[401466476,1768245042251,-1500.0,0.00014795,2]
[401466477,1768245042261,-500.0,0.00014795,2]
[401466478,1768245042271,-1500.0,0.00014795,2]
[401466479,1768245042280,-1500.0,0.00014795,2]
[401466481,1768245042290,-1500.0,0.00014795,2]
[401466483,1768245042299,-1500.0,0.00014795,2]
[401466484,1768245042309,-1500.0,0.00014795,2]
[401466486,1768245042322,-500.0,0.00014795,2]
[401466489,1768245042333,-964.41428729,0.00014795,2]
[401466491,1768245042348,-1500.0,0.00014795,2]
[401466493,1768245042363,-1500.0,0.00014795,2]
[401466494,1768245042377,-1500.0,0.00014795,2]
[401466495,1768245042390,-710.84440634,0.00014795,2]
[401466496,1768245042402,-1500.0,0.00014795,2]
[401466497,1768245042415,-1500.0,0.00014795,2]
[401466498,1768245042428,-1500.0,0.00014795,2]
[401466499,1768245042441,-1500.0,0.00014795,2]
[401466500,1768245042455,-1500.0,0.00014795,2]
[401466501,1768245042468,-1500.0,0.00014795,2]
[401466502,1768245042482,-1500.0,0.00014795,2]
[401466503,1768245042496,-1500.0,0.00014795,2]
[401466504,1768245042509,-1500.0,0.00014795,2]
[401466505,1768245042523,-500.0,0.00014795,2]
[401466506,1768245042535,-621.18791817,0.00014795,2]
[401466507,1768245042548,-175.05887209,0.00014795,2]
[401466508,1768245042559,-1500.0,0.00014795,2]
[401466509,1768245042571,-1500.0,0.00014795,2]
[401466510,1768245042584,-1500.0,0.00014795,2]
[401466511,1768245042597,-1500.0,0.00014795,2]
[401466512,1768245042610,-1509.97698878,0.00014795,2]
[401466513,1768245042623,-213.347949,0.00014795,2]
[401466514,1768245042634,-213.347949,0.00014795,2]
[401466515,1768245042645,-213.347949,0.00014795,2]
[401466516,1768245042657,-213.347949,0.00014795,2]
[401466517,1768245042669,-496.47127164,0.00014851,2]
[401466518,1768245042683,-181.08010149,0.00014851,2]
[401466519,1768245042695,-187.78006525,0.00014851,2]
[401466520,1768245042710,-194.72792766,0.00014851,2]
[401466521,1768245042722,-201.93286099,0.00014851,2]
[401466522,1768245042735,-209.40437684,0.00014851,2]
[401466523,1768245042749,-217.15233878,0.00014851,2]
[401466524,1768245042763,-225.18697532,0.00014851,2]
[401466525,1768245042776,-233.51889341,0.00014851,2]
[401466526,1768245042787,-242.15909246,0.00014851,2]
[401466527,1768245042798,-251.11897888,0.00014851,2]
[401466528,1768245042809,-2398.4119403,0.00014851,2]
[401466529,1768245042821,-260.4103811,0.00014851,2]
[401466530,1768245042835,-270.0455652,0.00014851,2]
[401466531,1768245042849,-280.03725112,0.00014851,2]
[401466532,1768245042863,-290.39862941,0.00014851,2]
[401466533,1768245042874,-301.1433787,0.00014851,2]
[401466534,1768245042886,-100000.0,0.00014882,2]
[401466535,1768245042898,-213.347949,0.00014882,2]
[401466536,1768245042910,-213.347949,0.00014882,2]
[401466537,1768245042923,-213.347949,0.00014882,2]
[401466538,1768245042934,-213.347949,0.00014882,2]
[401466539,1768245042945,-151.48350527,0.000149,2]
[401466540,1768245042957,-151.48350527,0.000149,2]
[401466541,1768245042967,-209.56189982,0.00014916,2]
[401466542,1768245042979,-263.96834089,0.00014916,2]
[401466543,1768245042991,-2000.0,0.00014916,2]
[401466544,1768245043002,-2000.0,0.00014916,2]
[401466545,1768245043014,-1000.0,0.00014916,2]
[401466546,1768245043025,-2000.0,0.00014916,2]
[401466548,1768245043036,-2000.0,0.00014916,2]
[401466549,1768245043047,-1177.20505665,0.00014916,2]
[401466550,1768245043059,-1000.0,0.00014916,2]
[401466551,1768245043071,-1000.0,0.00014916,2]
[401466552,1768245043083,-500.80134157,0.00014916,2]
[401466553,1768245043094,-1155.72124395,0.00014916,2]
[401466554,1768245043106,-985.3091038,0.00014916,2]
[401466555,1768245043117,-2000.0,0.00014916,2]
[401466556,1768245043129,-1603.18109463,0.00014916,2]
[401466557,1768245043140,-2000.0,0.00014916,2]
[401466558,1768245043152,-502.33157316,0.00014916,2]
[401466559,1768245043164,-1113.36442406,0.00014916,2]
[401466560,1768245043176,-2000.0,0.00014916,2]
[401466561,1768245043187,-2000.0,0.00014916,2]
[401466562,1768245043198,-2000.0,0.00014916,2]
[401466563,1768245043209,-2000.0,0.00014916,2]
[401466564,1768245043220,-2000.0,0.00014916,2]
[401466565,1768245043232,-2000.0,0.00014916,2]
[401466566,1768245043243,-367.3358691,0.00014986,2]
[401466567,1768245043254,-161.900775,0.00015068,2]
[401466568,1768245043266,-1207.9640205,0.00015104,2]
[401466570,1768245043278,-221.25125895,0.00015297,2]
[401466572,1768245043289,-500.0,0.00015342,2]
[401466575,1768245043300,-1000.0,0.00015342,2]
[401466577,1768245043311,-526.41190133,0.00015342,2]
[401466579,1768245043325,-500.0,0.00015342,2]
[401466582,1768245043336,-500.0,0.00015342,2]
[401466584,1768245043347,-737.22168392,0.00015342,2]
[401466587,1768245043360,-2000.0,0.00015342,2]
[401466589,1768245043371,-2000.0,0.00015342,2]
[401466590,1768245043383,-2000.0,0.00015342,2]
[401466593,1768245043395,-2000.0,0.00015342,2]
[401466595,1768245043406,-2000.0,0.00015342,2]
[401466597,1768245043418,-967.72472625,0.00015342,2]
[401466599,1768245043430,-2000.0,0.00015342,2]
[401466600,1768245043442,-517.83301398,0.00015342,2]
[401466601,1768245043454,-507.57819343,0.00015342,2]
[401466602,1768245043466,-1648.74912763,0.00015342,2]
[401466603,1768245043477,-2000.0,0.00015342,2]
[401466604,1768245043489,-500.0,0.00015342,2]
[401466605,1768245043500,-1702.30233565,0.00015342,2]
[401466606,1768245043512,-2000.0,0.00015342,2]
[401466607,1768245043523,-2000.0,0.00015342,2]
[401466608,1768245043535,-720.0,0.00015368,2]
[401466609,1768245043546,-514.84070869,0.00015399,2]
[401466610,1768245043557,-2487.15318209,0.00015399,2]
[401466611,1768245043568,-213.347949,0.00015464,2]
[401466612,1768245043720,-213.347949,0.00015464,2]
[401466613,1768245043729,-213.347949,0.00015464,2]
[401466614,1768245043739,-213.347945,0.00015464,2]
[401466615,1768245043749,-374.68815725,0.00015464,2]
[401466616,1768245043758,-466.62413338,0.00015464,2]
[401466617,1768245043768,-2500.0,0.00015464,2]
[401466618,1768245043778,-2500.0,0.00015464,2]
[401466619,1768245043787,-2500.0,0.00015464,2]
[401466620,1768245043797,-2500.0,0.00015464,2]
[401466621,1768245043807,-2500.0,0.00015464,2]
[401466622,1768245043818,-2500.0,0.00015464,2]
[401466623,1768245043827,-2500.0,0.00015464,2]
[401466624,1768245043837,-1897.40421659,0.00015464,2]
[401466625,1768245043846,-2500.0,0.00015464,2]
[401466626,1768245043857,-2500.0,0.00015464,2]
[401466627,1768245043866,-290.53835133,0.00015589,2]
[401466628,1768245043876,-2500.0,0.0001589,2]
[401466629,1768245043886,-1000.0,0.0001589,2]
[401466630,1768245043895,-501.21372141,0.0001589,2]
[401466631,1768245043905,-1000.0,0.0001589,2]
[401466632,1768245043915,-2000.0,0.0001589,2]
[401466633,1768245043925,-2500.0,0.0001589,2]
[401466634,1768245043934,-1090.98190772,0.0001589,2]
[401466635,1768245043944,-231.95532903,0.0001589,2]
[401466636,1768245043953,-1000.0,0.0001589,2]
[401466637,1768245043962,-533.88981491,0.00015947,2]
[401466638,1768245043972,-2579.17784983,0.00015947,2]
[401466639,1768245043982,-2164.74090695,0.00016012,2]
[401466640,1768245043991,-3000.0,0.00016012,2]
[401466641,1768245044001,-3000.0,0.00016012,2]
[401466642,1768245044011,-3000.0,0.00016012,2]
[401466643,1768245044021,-3000.0,0.00016012,2]
[401466644,1768245044031,-3000.0,0.00016012,2]
[401466645,1768245044041,-3000.0,0.00016012,2]
[401466646,1768245044051,-1138.85906661,0.00016012,2]
[401466647,1768245044061,-1000.0,0.00016012,2]
[401466648,1768245044070,-228.70879455,0.00016027,7]
[401466649,1768245044080,-1152.0,0.00016058,2]
[401466650,1768245044089,-347.0,0.00016145,2]
[401466651,1768245044098,-298.51382573,0.00016145,2]
[401466652,1768245044108,-416.19601909,0.00016145,2]
[401466653,1768245044117,-151.0,0.00016145,2]
[401466654,1768245044127,-151.0,0.00016145,2]
[401466655,1768245044136,-151.0,0.00016145,2]
[401466657,1768245044145,-151.0,0.00016145,2]
[401466659,1768245044155,-151.0,0.00016145,2]
[401466660,1768245044164,-151.0,0.00016145,2]
[401466661,1768245044173,-199.32099567,0.00016145,2]
[401466662,1768245044182,-151.0,0.00016145,2]
[401466663,1768245044192,-151.0,0.00016145,2]
[401466664,1768245044201,-347.0,0.00016145,2]
[401466665,1768245044211,-347.0,0.00016145,2]
[401466666,1768245044220,-152.0,0.00016145,2]
[401466667,1768245044229,-166.0,0.00016145,2]
[401466668,1768245044239,-154.66138278,0.00016145,2]
[401466669,1768245044248,-347.0,0.00016145,2]
[401466670,1768245044258,-152.0,0.00016145,2]
[401466671,1768245044268,-166.0,0.00016145,2]
[401466672,1768245044278,-337.0,0.00016145,2]
[401466673,1768245044287,-347.0,0.00016145,2]
[401466674,1768245044297,-151.0,0.00016145,2]
[401466675,1768245044306,-152.0,0.00016145,2]
[401466676,1768245044317,-166.0,0.00016145,2]
[401466677,1768245044327,-337.0,0.00016145,2]
[401466678,1768245044337,-347.0,0.00016145,2]
[401466679,1768245044347,-151.0,0.00016145,2]
[401466680,1768245044359,-152.0,0.00016145,2]
[401466681,1768245044368,-166.0,0.00016145,2]
[401466682,1768245044378,-347.0,0.00016145,2]
[401466683,1768245044388,-337.0,0.00016145,2]
[401466684,1768245044398,-152.0,0.00016145,2]
[401466685,1768245044408,-166.0,0.00016145,2]
[401466686,1768245044417,-151.0,0.00016145,2]
[401466687,1768245044427,-347.0,0.00016145,2]
[401466688,1768245044436,-337.0,0.00016145,2]
[401466689,1768245044445,-152.0,0.00016145,2]
[401466690,1768245044455,-166.0,0.00016145,2]
[401466691,1768245044465,-347.0,0.00016145,2]
[401466692,1768245044474,-337.0,0.00016145,2]
[401466693,1768245044484,-152.0,0.00016145,2]
[401466694,1768245044493,-166.0,0.00016145,2]
[401466695,1768245044503,-347.0,0.00016145,2]
[401466696,1768245044512,-337.0,0.00016145,2]
[401466697,1768245044522,-152.0,0.00016145,2]
[401466698,1768245044531,-172.0,0.00016145,2]
[401466699,1768245044541,-347.0,0.00016145,2]
[401466700,1768245044550,-337.0,0.00016145,2]
[401466701,1768245044560,-151.0,0.00016145,2]
[401466702,1768245044570,-337.0,0.00016145,2]
[401466703,1768245044579,-347.0,0.00016145,2]
[401466704,1768245044589,-347.0,0.00016145,2]
[401466705,1768245044599,-151.0,0.00016145,2]
[401466706,1768245044610,-337.0,0.00016145,2]
[401466707,1768245044619,-347.0,0.00016145,2]
[401466708,1768245044629,-337.0,0.00016145,2]
[401466709,1768245044639,-347.0,0.00016145,2]
[401466710,1768245044649,-151.0,0.00016145,2]
[401466711,1768245044658,-347.0,0.00016145,2]
[401466712,1768245044668,-337.0,0.00016145,2]
[401466713,1768245044677,-151.0,0.00016145,2]
[401466714,1768245044687,-347.0,0.00016145,2]
[401466715,1768245044696,-337.0,0.00016145,2]
[401466716,1768245044706,-151.0,0.00016145,2]
[401466717,1768245044715,-347.0,0.00016145,2]
[401466718,1768245044725,-337.0,0.00016145,2]
[401466719,1768245044735,-151.0,0.00016145,2]
[401466720,1768245044744,-337.0,0.00016145,2]
[401466721,1768245044754,-151.0,0.00016145,2]
[401466722,1768245044764,-337.0,0.00016145,2]
[401466723,1768245044775,-14640.2279613,0.00016266,2]
[401466724,1768245044784,-13353.43900231,0.00016338,2]
[401466725,1768245044794,-7554.49625492,0.0001634,2]
[401466726,1768245044804,-500.0,0.00016438,2]
[401466727,1768245044815,-500.0,0.00016438,2]
[401466728,1768245044825,-325.1322584,0.00016438,2]
[401466729,1768245044835,-500.0,0.00016438,2]
[401466730,1768245044845,-151.0,0.00016438,2]
[401466731,1768245044859,-151.0,0.00016438,2]
[401466732,1768245044869,-151.0,0.00016438,2]
[401466733,1768245044879,-151.0,0.00016438,2]
[401466734,1768245044889,-500.0,0.00016438,2]
[401466735,1768245044899,-3000.0,0.00016438,2]
[401466736,1768245044909,-553.64373807,0.00016495,2]
[401466737,1768245044919,-2674.60743027,0.00016495,2]
[401466738,1768245044928,-1207.9640205,0.0001651,2]
[401466739,1768245044938,-500.0,0.0001656,2]
[401466740,1768245044947,-2000.0,0.0001656,2]
[401466741,1768245044957,-3500.0,0.0001656,2]
[401466742,1768245044967,-3500.0,0.0001656,2]
[401466743,1768245044976,-3000.0,0.0001656,2]
[401466744,1768245044986,-3266.6764096,0.00016839,2]
[401466745,1768245044996,-864.0,0.00016905,2]
[401466746,1768245045005,-415.95385178,0.00016986,2]
[401466747,1768245045015,-3500.0,0.00016986,2]
[401466748,1768245045025,-49923.77987468,0.0001701,3]
[401466749,1768245045035,-151.0,0.0001701,2]
[401466750,1768245045044,-574.12855637,0.00017043,2]
[401466751,1768245045054,-2773.56790519,0.00017043,2]
[401466752,1768245045064,-533.9237819,0.00017108,2]
[401466754,1768245045073,-1500.0,0.00017108,2]
[401466755,1768245045083,-180.09004502,0.00017123,2]
[401466756,1768245045092,-511.41371224,0.00017296,2]
[401466757,1768245045101,-2045.65484897,0.00017296,2]
[401466758,1768245045113,-4598.12068678,0.00017296,2]
[401466759,1768245045122,-505.7283708,0.00017296,2]
[401466760,1768245045132,-2022.91348319,0.00017296,2]
[401466761,1768245045146,-4547.00378185,0.00017296,2]
[401466762,1768245045155,-5000.0,0.00017412,2]
[401466763,1768245045165,-1012.33286536,0.00017534,2]
[401466764,1768245045174,-2147.0,0.00017571,2]
[401466765,1768245045184,-1366.0,0.00017571,2]
[401466766,1768245045193,-628.0,0.00017571,2]
[401466767,1768245045203,-417.0,0.00017571,2]
[401466769,1768245045212,-417.0,0.00017571,2]
[401466770,1768245045222,-715.0,0.00017571,2]
[401466771,1768245045232,-197.827,0.00017571,2]
[401466772,1768245045241,-595.37131296,0.00017591,2]
[401466773,1768245045250,-2876.18991768,0.00017591,2]
[401466774,1768245045260,-1613.0,0.00017646,2]
[401466776,1768245045269,-1207.9640205,0.00017915,2]
[401466777,1768245045279,-1003.4965287,0.00017998,2]
[401466778,1768245045288,-75067.17408524,0.00018,2]
[401466779,1768245045298,-41693.40887456,0.00018,5]
[401466780,1768245045309,-778.0,0.00018,2]
[401466782,1768245045320,-123503.92741379,0.00018082,3]
[401466784,1768245045330,-617.40005154,0.00018139,2]
[401466785,1768245045339,-2461.47450756,0.00018139,2]
[401466786,1768245045351,-600.0,0.00018306,7]
[401466787,1768245045362,-30875.97,0.0001831,3]
[401466788,1768245045371,-1000.0,0.00018595,2]
[401466789,1768245045381,-266806.030769,0.0001861,2]